Cogmind - Beta 13 @@@ ROGUE MODE // 2024.04.04 @ 08:20:40 Player: Ellie Result: Destroyed by Y-54 Guardian with Flak Gun Performance ------------- Evolutions (3) 1500 Regions Visited (6) 1200 Robots Destroyed (46) 230 Value Destroyed (1381) 1381 Prototype IDs (2) 40 Alien Tech Used (0) 0 Bonus (0) 0 TOTAL SCORE: 4351 Bonus ------- None Cogmind --------- Core Integrity 0/700 Matter 300/300 Energy 100/100 System Corruption 1% Temperature Cool (18) Movement Core (50) Location -7/Storage Parts ------- > --- POWER (2) -------- (None) > --- PROPULSION (4) --- (None) > --- UTILITY (5) ------ Coolant Injector Core Analyzer > --- WEAPON (2) ------- (None) > --- INVENTORY (5) ---- Light Ion Engine Light Treads Aluminum Leg Improved Titanium Leg Plasma Cannon Peak State ------------ > --- POWER ------------ Light Deuterium Engine Light Deuterium Engine > --- PROPULSION ------- Improved Carbon-fiber Leg Improved Titanium Leg Improved Titanium Leg Improved Titanium Leg > --- UTILITY ---------- Improved Heat Sink Coolant Injector Small Storage Unit Core Analyzer Powered Armor > --- WEAPON ----------- Plasma Cannon Heavy Ion Cannon > --- INVENTORY -------- Light Ion Engine Improved Aluminum Leg Carbon-fiber Leg Improved Titanium Leg Heavy Particle Gun Heavy Particle Cannon Heavy Particle Cannon Mining Claw [Rating: 48] Favorites ----------- Power Light Ion Engine Engine Light Ion Engine Power Core Micro Nuclear Core Propulsion Aluminum Leg Leg Aluminum Leg Hover Unit Hover Unit Flight Unit VTOL Module Utility Small Storage Unit Device Structural Scanner Storage Small Storage Unit Processor Core Analyzer Protection Powered Armor Weapon Heavy Particle Cannon Energy Gun Small Laser Energy Cannon Heavy Particle Cannon Ballistic Gun Assault Rifle Launcher Rocket Launcher Slashing Weapon Mining Claw Build | -11 -10 -9 -9 -8 -7 -7 ------- Run | Yrd Mat Mat Min Mat Fac Sto Slots Evolved 6 | . . 2 . 2 2 . Power 1 | . . 1 . . . . Propulsion 2 | . . 1 . . 1 . Utility 3 | . . . . 2 1 . Weapon . | . . . . . . . Parts Attached 68 | 6 7 7 5 19 5 19 Power 9 | 1 . 2 1 2 . 3 Engine 8 | 1 . 2 1 2 . 2 Core 1 | . . . . . . 1 Reactor . | . . . . . . . Propulsion 20 | 2 2 3 1 4 2 6 Treads . | . . . . . . . Leg 18 | 2 1 2 1 4 2 6 Wheel . | . . . . . . . Hover 1 | . 1 . . . . . Flight 1 | . . 1 . . . . Utility 12 | 1 2 . . 4 1 4 Device 9 | . 2 . . 2 1 4 Storage 1 | 1 . . . . . . Processor 1 | . . . . 1 . . Hackware . | . . . . . . . Protection 1 | . . . . 1 . . Artifact . | . . . . . . . Weapon 27 | 2 3 2 3 9 2 6 Energy Gun 4 | 1 . . . 2 . 1 Energy Cannon 14 | . 1 1 1 7 2 2 Ballistic Gun 1 | 1 . . . . . . Ballistic Cannon . | . . . . . . . Launcher 4 | . 2 1 1 . . . Special Weapon . | . . . . . . . Impact Weapon . | . . . . . . . Slashing Weapon 4 | . . . 1 . . 3 Piercing Weapon . | . . . . . . . Special Melee Weapon . | . . . . . . . Unidentified Prototypes 2 | . . . . 2 . . Corrupted Parts 1 | . . 1 . . . . System Corruption 1 | . . 1 . . . . Parts Lost 24 | . . 1 1 1 . 21 Power 5 | . . 1 . . . 4 Propulsion 9 | . . . 1 . . 8 Utility 6 | . . . . 1 . 5 Weapon 4 | . . . . . . 4 Highest Loss Streak 14 | . . 1 1 1 . 14 To Critical Strikes 1 | . . . . . . 1 Average Slot Usage (%) 89 | . 98 90 89 90 95 81 Engine 12 | . 14 13 13 18 15 6 Leg 26 | . 28 26 32 27 30 25 Flight 1 | . . 5 . . . . Device 12 | . 12 11 11 10 10 17 Storage 9 | . 14 11 11 9 7 6 Processor 3 | . . . . 3 7 7 Protection 1 | . . . . 3 7 1 Energy Gun 2 | . 12 . . . . . Energy Cannon 10 | . 1 11 10 17 15 10 Ballistic Gun 2 | . 11 . . . . . Launcher 3 | . 2 11 10 . . . Naked Turns . | . . . . . . . Heaviest Build 42 | 13 19 22 20 38 42 42 Greatest Support 80 | 20 20 30 30 60 80 78 Greatest Overweight (x) 1 | . . 1 . . . 1 Average Overweight (x) . | . . . . . . . Largest Inventory Capacity 8 | 8 8 8 8 8 8 8 Average Capacity 7 | 7 8 8 8 8 8 7 Most Carried 8 | 5 8 8 8 8 8 8 Average Carried 7 | 1 6 7 7 7 7 7 Final Capacity 8 | 8 8 8 8 8 8 5 Final Carried 8 | 1 8 8 7 8 8 5 Class Distribution -------------------- 80% | Mutant 19% | Scavenger-Mutant Dominant Class ---------------- Mutant | -10/Materials Mutant | -9/Materials Mutant | -9/Mines Mutant | -8/Materials Mutant | -7/Factory Scavenger-Mutant | -7/Storage Resources | -11 -10 -9 -9 -8 -7 -7 ----------- Run | Yrd Mat Mat Min Mat Fac Sto Matter Collected 995 | 184 128 53 108 371 . 151 Remotely . | . . . . . . . Salvage Created 1663 | . 133 346 33 637 . 514 Parts 101 | . 12 29 . 34 . 26 Haulers Intercepted . | . . . . . . . Recyclers Shooed . | . . . . . . . Parts Field Recycled . | . . . . . . . Retrieved Matter . | . . . . . . . Parts Self-Destructed . | . . . . . . . Prevented . | . . . . . . . Kills | -11 -10 -9 -9 -8 -7 -7 ------- Run | Yrd Mat Mat Min Mat Fac Sto Combat Hostiles Destroyed 36 | . 3 12 3 10 . 8 Melee 3 | . . . 1 . . 2 Guns 3 | . 3 . . . . . Cannons 19 | . . 4 . 9 . 6 AOE 10 | . . 8 2 . . . Classes Destroyed 12 | . 2 6 1 2 . 1 Worker 2 | . . 1 . 1 . . Builder 2 | . . 1 . . . 1 Recycler 2 | . . . . 1 . 1 Operator 1 | . . 1 . . . . Watcher 6 | . 1 1 . 3 . 1 Swarmer 8 | . . 4 . 3 . 1 Grunt 14 | . 3 6 . 2 . 3 Brawler 1 | . . 1 . . . . Sentry 8 | . . 1 . 4 . 3 Hunter 1 | . . . . 1 . . Programmer 1 | . . . . . . 1 Assembled 3 | . . . 3 . . . Best Kill Streak 8 | . 1 8 2 6 . 4 Combat Bots Only 4 | . 1 4 2 4 . 4 Max Kills in Single Turn 2 | . 1 2 1 1 . 2 Gunslinging . | . . . . . . . Exploded 2 | . . 2 1 . . . Melee 1 | . . . 1 . . 1 Uniques/NPCs Destroyed . | . . . . . . . Combat | -11 -10 -9 -9 -8 -7 -7 -------- Run | Yrd Mat Mat Min Mat Fac Sto Hostile Shots Fired 584 | . 9 25 8 101 . 441 Missed 173 | . 4 9 1 31 . 128 Damage Taken 4142 | . 197 275 203 753 . 2714 Core 1008 | . 45 81 36 141 . 705 Absorbed by Shields . | . . . . . . . Core Remaining (%) 81 | 100 82 . 70 74 . . Volleys Fired 96 | . 12 20 3 29 . 32 Largest 2 | . 2 2 2 2 . 2 Hottest 150 | . 60 89 89 150 . 150 Shots Fired 185 | . 24 37 5 57 . 62 Gun 25 | . 24 . . . . 1 Cannon 141 | . . 20 3 57 . 61 Launcher 19 | . . 17 2 . . . Special . | . . . . . . . Kinetic 12 | . 12 . . . . . Thermal 111 | . 12 . . 37 . 62 Explosive 19 | . . 17 2 . . . Electromagnetic 43 | . . 20 3 20 . . Robot Hit Streak 8 | . 5 8 5 5 . 8 Robot Miss Streak 7 | . 4 4 1 7 . 3 Penetration Max . | . . . . . . . Secondary Targets . | . . . . . . . Shots Hit Robots 116 | . 15 16 3 26 . 56 Core Hits 75 | . 9 25 4 18 . 19 Critical Kills 1 | . . . . 1 . . Critical Parts Destroyed . | . . . . . . . Critical Strikes 2 | . . . . 2 . . Meltdown 1 | . . . . 1 . . Corrupt 1 | . . . . 1 . . Melee Attacks 32 | . . . 2 . . 30 Impact . | . . . . . . . Slashing 32 | . . . 2 . . 30 Piercing . | . . . . . . . Sneak Attacks 1 | . . . . . . 1 Combat Hostiles . | . . . . . . . Follow-up Attacks . | . . . . . . . Damage Inflicted 3786 | . 170 1169 155 819 . 1473 Guns 189 | . 168 . . . . 21 Cannons 2100 | . . 267 39 746 . 1048 Explosions 1024 | . . 879 89 56 . . Melee 425 | . . . 27 . . 398 Ramming 48 | . 2 23 . 17 . 6 Kinetic 80 | . 80 . . . . . Thermal 1638 | . 88 . . 481 . 1069 Explosive 968 | . . 879 89 . . . Electromagnetic 627 | . . 267 39 321 . . Impact . | . . . . . . . Slashing 425 | . . . 27 . . 398 Piercing . | . . . . . . . Highest Corruption 1 | . . 1 1 . . 1 Average Corruption 1 | . . 1 1 . . 1 Corruption Purged . | . . . . . . . Corruption Blocked . | . . . . . . . Effects 2 | . . . 1 . . 1 Message Errors 1 | . . . . . . 1 Energy Discharges 1 | . . . 1 . . . Overload Shots . | . . . . . . . Overflow Damage 57 | . . 21 . 5 . 31 Projectiles 20 | . . . . 5 . 15 Explosions 21 | . . 21 . . . . Melee 16 | . . . . . . 16 Knockbacks . | . . . . . . . Impact . | . . . . . . . Kinetic . | . . . . . . . Secondary . | . . . . . . . Self-Inflicted Damage 132 | . . 102 30 . . . Shots 4 | . . 3 1 . . . Rammed . | . . . . . . . Targets Rammed 10 | . 1 5 1 2 . 1 Kicked 10 | . 1 5 1 2 . 1 Crushed . | . . . . . . . Highest Temperature 427 | . 30 170 33 427 . 105 Average Temperature 113 | . 14 57 13 187 . 32 Received Heat Transfer 921 | . 42 69 . 144 . 666 Effects 9 | . . . . 9 . . Shutdowns 3 | . . . . 3 . . Energy Bleed 1 | . . . . 1 . . Interference 4 | . . . . 4 . . Damage (minor) 1 | . . . . 1 . . Siege Activations . | . . . . . . . Robots Corrupted . | . . . . . . . Combat Hostiles . | . . . . . . . Parts Fried 2 | . . 1 . 1 . . Impact Corruptions . | . . . . . . . Robots Melted 1 | . . . . 1 . . Combat Hostiles 1 | . . . . 1 . . Parts Melted 6 | . . . . . . 6 Heat Transferred 2483 | . 200 . . 729 . 1554 Parts Sabotaged . | . . . . . . . Parts Stolen . | . . . . . . . Parts Stripped . | . . . . . . . Power Chain Reactions 1 | . . . . 1 . . Alert | -11 -10 -9 -9 -8 -7 -7 ------- Run | Yrd Mat Mat Min Mat Fac Sto Peak Influence 419 | . 147 419 96 288 77 186 Initial 85 | . . . 85 35 77 34 Average 102 | . 47 220 93 130 77 60 Maximum Alert Level 2 | . . 2 . 1 . . Low Security (%) 85 | 100 100 44 100 80 100 100 Level 1 11 | . . 38 . 19 . . Level 2 2 | . . 17 . . . . Level 3 . | . . . . . . . Level 4 . | . . . . . . . Level 5 . | . . . . . . . High Security . | . . . . . . . Max Security . | . . . . . . . Squads Dispatched 10 | . 2 1 . 3 . 4 Investigation 4 | . 2 . . . . 2 Extermination 1 | . . . . . . 1 Reinforcement 2 | . . 1 . . . 1 Assault . | . . . . . . . Garrison 3 | . . . . 3 . . Intercept . | . . . . . . . Searches Triggered . | . . . . . . . Construction Impeded 1 | . . 1 . . . . Haulers Reinforced . | . . . . . . . Active Scanning Responses . | . . . . . . . Cargo Convoy Interrupts . | . . . . . . . Stealth | -11 -10 -9 -9 -8 -7 -7 --------- Run | Yrd Mat Mat Min Mat Fac Sto Distress Signals 3 | . . . . 2 . 1 Communications Jammed . | . . . . . . . Distress Signals . | . . . . . . . Times Spotted 54 | . 6 14 2 17 . 15 Peak Tracking Total 11 | . 2 4 1 5 . 11 Tactical Retreats 2 | . 2 . . . . . Traps | -11 -10 -9 -9 -8 -7 -7 ------- Run | Yrd Mat Mat Min Mat Fac Sto Traps Triggered 3 | . 2 . . . . 1 Indirectly . | . . . . . . . Trap Hack Attempts . | . . . . . . . Triggered . | . . . . . . . Disarmed . | . . . . . . . Reprogrammed . | . . . . . . . Reused . | . . . . . . . Traps Extracted . | . . . . . . . Installed . | . . . . . . . Triggered . | . . . . . . . Machines | -11 -10 -9 -9 -8 -7 -7 ---------- Run | Yrd Mat Mat Min Mat Fac Sto Machines Disabled 2 | . . 1 . . . 1 Max in Single Turn 1 | . . 1 . . . 1 Machines Repaired . | . . . . . . . Machines Dismantled . | . . . . . . . Machines Sabotaged . | . . . . . . . Overloaded Fab Kills . | . . . . . . . Hacking | -11 -10 -9 -9 -8 -7 -7 --------- Run | Yrd Mat Mat Min Mat Fac Sto Machines Accessed 4 | . . 1 . 1 . 2 Terminals 4 | . . 1 . 1 . 2 Fabricators . | . . . . . . . Repair Stations . | . . . . . . . Recycling Units . | . . . . . . . Scanalyzers . | . . . . . . . Garrison Access . | . . . . . . . Total Hacks 8 | . . 3 . 2 . 3 Successful 5 | . . 3 . . . 2 Failed 3 | . . . . 2 . 1 Catastrophic 1 | . . . . . . 1 Database Lockouts . | . . . . . . . Manual . | . . . . . . . Terminals 8 | . . 3 . 2 . 3 Fabricators . | . . . . . . . Repair Stations . | . . . . . . . Recycling Units . | . . . . . . . Scanalyzers . | . . . . . . . Garrison Access . | . . . . . . . Terminal Hacks 5 | . . 3 . . . 2 Record 2 | . . 2 . . . . Open Door 2 | . . . . . . 2 Emergency Access Points 1 | . . 1 . . . . Fabricator Hacks . | . . . . . . . Repair Station Hacks . | . . . . . . . Recycling Unit Hacks . | . . . . . . . Scanalyzer . | . . . . . . . Garrison Access Hacks . | . . . . . . . Unauthorized Hacks . | . . . . . . . Terminals . | . . . . . . . Fabricators . | . . . . . . . Repair Stations . | . . . . . . . Recycling Units . | . . . . . . . Scanalyzers . | . . . . . . . Garrison Access . | . . . . . . . Data Cores Recovered . | . . . . . . . Used . | . . . . . . . Hacking Detections 2 | . . . . 1 . 1 Full Trace Events 1 | . . . . . . 1 Feedback Events . | . . . . . . . Feedback Blocked . | . . . . . . . Robot Schematics Acquired . | . . . . . . . Robots Built . | . . . . . . . Authchips . | . . . . . . . Time . | . . . . . . . Total Robot Build Rating . | . . . . . . . Part Schematics Acquired . | . . . . . . . Parts Built . | . . . . . . . Authchips . | . . . . . . . Time . | . . . . . . . Total Part Build Rating . | . . . . . . . Parts Repaired . | . . . . . . . Time . | . . . . . . . Parts Recycled . | . . . . . . . Recycled Matter . | . . . . . . . Retrieved Matter . | . . . . . . . Retrieved Components . | . . . . . . . Parts Scanalyzed . | . . . . . . . Part Schematics Acquired . | . . . . . . . Parts Damaged . | . . . . . . . Bothacking | -11 -10 -9 -9 -8 -7 -7 ------------ Run | Yrd Mat Mat Min Mat Fac Sto Used RIF Installer . | . . . . . . . Robots Hacked . | . . . . . . . Non-combat . | . . . . . . . Combat . | . . . . . . . Robot Hacks Applied . | . . . . . . . Relay Couplers Released . | . . . . . . . Fabnet Peak Effective % . | . . . . . . . Robots Rewired . | . . . . . . . Allies Hacked . | . . . . . . . Hacks Repelled . | . . . . . . . Allies | -11 -10 -9 -9 -8 -7 -7 -------- Run | Yrd Mat Mat Min Mat Fac Sto Total Allies . | . . . . . . . Largest Group . | . . . . . . . Highest-Rated Group . | . . . . . . . Highest-Rated Ally . | . . . . . . . Total Orders . | . . . . . . . Ally Attacks . | . . . . . . . Total Damage . | . . . . . . . Kills . | . . . . . . . Allies Corrupted . | . . . . . . . Allies Melted . | . . . . . . . Intel | -11 -10 -9 -9 -8 -7 -7 ------- Run | Yrd Mat Mat Min Mat Fac Sto Robot Analysis Total . | . . . . . . . Derelict Logs Recovered . | . . . . . . . Drone Launches . | . . . . . . . Drone Recoveries . | . . . . . . . Exploration | -11 -10 -9 -9 -8 -7 -7 ------------- Run | Yrd Mat Mat Min Mat Fac Sto Turns Passed 2320 | 67 461 401 133 543 130 585 Spaces Moved 1249 | 38 258 242 92 318 94 207 Core 17 | 17 . . . . . . Treads . | . . . . . . . Legs 1232 | 21 258 242 92 318 94 207 Wheels . | . . . . . . . Hover . | . . . . . . . Flight . | . . . . . . . Fastest Speed 50 | 50 120 120 120 120 127 120 Average Speed 124 | 88 120 134 120 124 128 125 Slowest Speed 190 | 120 120 190 120 130 130 190 Overloaded Moves . | . . . . . . . Propulsion Burnouts . | . . . . . . . Robots Hopped . | . . . . . . . Cave-ins Triggered . | . . . . . . . Exploration Rate (%) 23 | 3 36 29 28 33 3 29 Regions Visited 6 Branch Regions 2 Pre-discovered Areas . | . . . . . . . Known Exits Taken . | . . . . . . . Unknown Exits Taken 6 | 1 1 1 1 1 1 . Scrap Searched . | . . . . . . . Spaces Dug 17 | . . . 15 . . 2 Terrain Destroyed 214 | . . 149 21 26 . 18 Melee 2 | . . . . . . 2 Projectile 35 | . . . . 19 . 16 AOE 177 | . . 149 21 7 . . Terrain Rammed . | . . . . . . . Walls Destroyed . | . . . . . . . Machines Disabled . | . . . . . . . Actions | -11 -10 -9 -9 -8 -7 -7 --------- Run | Yrd Mat Mat Min Mat Fac Sto Total 1764 | 70 389 277 105 412 103 408 Wait 223 | 22 81 . . 14 . 106 Move 1243 | 37 257 241 91 317 93 207 Hop . | . . . . . . . Pick Up 50 | 5 19 2 2 12 2 8 Fast Attach 15 | 2 1 5 . 3 1 3 Attach 25 | 4 4 2 3 2 1 9 Detach . | . . . . . . . Swap 28 | . 2 . 2 14 3 7 Drop 42 | . 12 2 1 19 3 5 Fire 96 | . 12 20 3 29 . 32 Melee 32 | . . . 2 . . 30 Ram . | . . . . . . . Kick 10 | . 1 5 1 2 . 1 Crush . | . . . . . . . Escape Stasis . | . . . . . . . Rewire . | . . . . . . . Trap . | . . . . . . . Miscellaneous . | . . . . . . . Route ------- -11/Scrapyard -10/Materials -9/Materials -9/Mines -8/Materials -7/Factory -7/Storage History --------- Turn | Location | Event 12 | -11/Scrapyard | Discovered new exit (range 15) 68 | -11/Scrapyard | Entered Materials 317 | -10/Materials | Build established: Mutant 460 | -10/Materials | Discovered new exit (range 10) 529 | -10/Materials | Entered another Materials area 529 | -9/Materials | Evolved 2 slots: Power x1, Propulsion x1 881 | -9/Materials | Discovered new exit (range 15) 930 | -9/Materials | Entered Mines 935 | -9/Mines | Assembled infested the area 1016 | -9/Mines | Discovered new exit (range 8) 1063 | -9/Mines | Entered Materials 1063 | -8/Materials | Evolved 2 slots: Utility x2 1199 | -8/Materials | Garrison activated, responded to threat 1386 | -8/Materials | Found Powered Armor 1576 | -8/Materials | Discovered new exit (range 16) 1606 | -8/Materials | Entered Factory 1606 | -7/Factory | Evolved 2 slots: Propulsion x1, Utility x1 1698 | -7/Factory | Discovered new exit (range 7) 1736 | -7/Factory | Entered Storage 2300 | -7/Storage | Core integrity fell below 50% 2313 | -7/Storage | Core integrity fell below 20% 2321 | -7/Storage | Destroyed by Y-54 Guardian with Flak Gun Last Messages --------------- Sealed Heavy Doors opened. 02215_ ALERT: Suspicious activity at Terminal S010. Dispatching Investigation squad. 02216_ Imp. Deuterium Engine destroyed. 02224_ Destroyed VTOL Module. 02228_ Hvy. Particle Cannon destroyed. 02248_ Carbon-fiber Leg destroyed. 02257_ Hvy. Particle Cannon destroyed. 02259_ Critical hit (Destroy). 02259_ Imp. Aluminum Leg destroyed. 02261_ ,